lending/lending_fUSD_20250409
["ID","MTS","AMOUNT","RATE_DAILY","PERIOD"]
[357599104,1744225277307,-151.414312,0.00033,7]
[357599105,1744225277332,-151.414312,0.00033,7]
[357599106,1744225277359,-151.0,0.00033,7]
[357599107,1744225277385,-1246.993629,0.00033,7]
[357599108,1744225277411,-151.0,0.00033,7]
[357599109,1744225277437,-1246.993629,0.00033,7]
[357599110,1744225277463,-483.211396,0.00033,7]
[357599111,1744225277488,-483.211396,0.00033,7]
[357599112,1744225277518,-195.561287,0.00033,7]
[357599113,1744225277543,-151.0,0.00033,7]
[357599114,1744225277568,-151.0,0.00033,7]
[357599115,1744225277594,-1006.48127833,0.00033092,30]
[357599116,1744225277827,-151.0,0.00033224,7]
[357599117,1744225277854,-263.623427,0.00033224,7]
[357599118,1744225277880,-151.0,0.00033224,7]
[357599119,1744225277906,-151.0,0.00033224,7]
[357599120,1744225277932,-160.390422,0.00033224,7]
[357599121,1744225277957,-151.0,0.00033224,7]
[357599122,1744225277987,-151.0,0.00033224,7]
[357599123,1744225278015,-151.0,0.00033233,7]
[357599124,1744225278046,-151.0,0.00033233,7]
[357599125,1744225278074,-151.0,0.00033233,7]
[357599126,1744225278101,-151.0,0.00033233,7]
[357599127,1744225278128,-151.0,0.00033233,7]
[357599128,1744225278159,-151.0,0.00033233,7]
[357599129,1744225278185,-151.0,0.00033233,7]
[357599130,1744225278210,-151.0,0.00033233,7]
[357599131,1744225278237,-1389.002025,0.00033233,7]
[357599132,1744225278264,-151.0,0.00033233,7]
[357599133,1744225278292,-151.0,0.00033233,7]
[357599134,1744225278319,-151.0,0.00033233,7]
[357599135,1744225278348,-151.0,0.00033233,7]
[357599136,1744225278377,-151.0,0.00033233,7]
[357599137,1744225278405,-151.0,0.00033233,7]
[357599138,1744225278433,-214.127597,0.00033233,7]
[357599139,1744225278460,-2924.969603,0.00033233,7]
[357599140,1744225278488,-2924.969603,0.00033233,7]
[357599141,1744225278518,-151.0,0.00033233,7]
[357599142,1744225278544,-500.0,0.00033252,120]
[357599143,1744225278570,-2000.0,0.00033252,120]
[357599144,1744225278595,-500.0,0.00033252,120]
[357599145,1744225278620,-1062.3674415,0.00034,35]
[357599146,1744225278647,-213.017112,0.00034247,7]
[357599147,1744225278673,-337.203198,0.00034247,7]
[357599148,1744225278701,-160.084196,0.00034247,7]
[357599149,1744225278733,-153.413182,0.00034247,7]
[357599150,1744225278766,-151.0,0.00034247,7]
[357599151,1744225278793,-151.0,0.00034247,7]
[357599152,1744225278820,-151.414312,0.00034247,7]
[357599153,1744225278847,-151.414312,0.00034247,7]
[357599154,1744225278874,-151.0,0.00034247,7]
[357599155,1744225278900,-1246.993629,0.00034247,7]
[357599156,1744225278926,-199.28501,0.00034247,7]
[357599157,1744225278952,-1246.993629,0.00034247,7]
[357599158,1744225278981,-483.211396,0.00034247,7]
[357599159,1744225279008,-483.211396,0.00034247,7]
[357599160,1744225279037,-151.0,0.00034247,7]
[357599161,1744225279063,-151.0,0.00034247,7]
[357599162,1744225279090,-808.92956141,0.00034247,7]
[357599163,1744225279120,-808.92956141,0.00034247,7]
[357599164,1744225279153,-808.92956141,0.00034247,7]
[357599165,1744225279181,-808.92956141,0.00034247,7]
[357599166,1744225279209,-808.92956141,0.00034247,7]
[357599167,1744225279236,-808.92956141,0.00034247,7]
[357599168,1744225279266,-808.92956141,0.00034247,7]
[357599169,1744225279293,-808.92956141,0.00034247,7]
[357599170,1744225279321,-808.92956141,0.00034247,7]
[357599171,1744225279347,-808.92956141,0.00034247,7]
[357599172,1744225279374,-808.92956141,0.00034247,7]
[357599173,1744225279400,-808.92956141,0.00034247,7]
[357599174,1744225279426,-808.92956141,0.00034247,7]
[357599175,1744225279455,-808.92956141,0.00034247,7]
[357599176,1744225279482,-808.92956141,0.00034247,7]
[357599177,1744225279509,-808.92956141,0.00034247,7]
[357599178,1744225279538,-808.92956141,0.00034247,7]
[357599179,1744225279565,-808.92956141,0.00034247,7]
[357599180,1744225279593,-5430.99964244,0.00034247,7]
[357599181,1744225279620,-5430.99964244,0.00034247,7]
[357599182,1744225279650,-5430.99964244,0.00034247,7]
[357599183,1744225279678,-5430.99964244,0.00034247,7]
[357599184,1744225279704,-5430.99964244,0.00034247,7]
[357599185,1744225279731,-5430.99964244,0.00034247,7]
[357599186,1744225279758,-5430.99964244,0.00034247,7]
[357599187,1744225279790,-5430.99964244,0.00034247,7]
[357599188,1744225279819,-5430.99964244,0.00034247,7]
[357599189,1744225279847,-151.0,0.00034344,7]
[357599190,1744225279874,-151.0,0.00034344,7]
[357599191,1744225279907,-151.0,0.00034344,7]
[357599192,1744225279934,-151.0,0.00034344,7]
[357599193,1744225279961,-151.0,0.00034344,7]
[357599194,1744225279992,-151.0,0.00034366,7]
[357599195,1744225280021,-151.0,0.00034366,7]
[357599196,1744225280049,-151.0,0.00034366,7]
[357599197,1744225280079,-2924.969603,0.00034366,7]
[357599198,1744225280418,-2924.969603,0.00034366,7]
[357599199,1744225280445,-277.538898,0.00034366,7]
[357599200,1744225280472,-1000.0,0.00034438,30]
[357599201,1744225280499,-3774.7689517,0.000345,120]
[357599202,1744225280527,-150.0,0.00034548,10]
[357599203,1744225280553,-151.0,0.00034732,7]
[357599204,1744225280580,-151.0,0.00034732,7]
[357599205,1744225280606,-151.0,0.00034732,7]
[357599206,1744225280631,-151.0,0.00034732,7]
[357599207,1744225280663,-151.0,0.00034732,7]
[357599208,1744225280690,-151.0,0.00034732,7]
[357599209,1744225280717,-151.0,0.00034732,7]
[357599210,1744225280744,-1389.002025,0.00034732,7]
[357599211,1744225280772,-151.0,0.00034732,7]
[357599212,1744225280799,-151.0,0.00034732,7]
[357599213,1744225280826,-151.0,0.00034732,7]
[357599214,1744225280853,-151.0,0.00034732,7]
[357599215,1744225280879,-218.05565682,0.00034835,30]
[357599216,1744225280906,-25975.45085099,0.0003489,14]
[357599217,1744225280933,-151.20146,0.000349,45]
[357599218,1744225280959,-151.0,0.0003492,7]
[357599219,1744225280991,-151.0,0.0003492,7]
[357599220,1744225281020,-212.457849,0.0003492,7]
[357599221,1744225281048,-151.0,0.0003499,7]
[357599222,1744225281077,-151.0,0.0003499,7]
[357599223,1744225281104,-151.414312,0.0003499,7]
[357599224,1744225281130,-151.414312,0.0003499,7]
[357599225,1744225281157,-151.0,0.0003499,7]
[357599226,1744225281185,-1246.993629,0.0003499,7]
[357599227,1744225281211,-1246.993629,0.0003499,7]
[357599228,1744225281239,-483.211396,0.0003499,7]
[357599229,1744225281266,-483.211396,0.0003499,7]
[357599230,1744225281292,-151.0,0.0003499,7]
[357599231,1744225281318,-151.0,0.0003499,7]
[357599232,1744225281344,-151.0,0.0003499,7]
[357599233,1744225281371,-242.60342,0.0003499,7]
[357599234,1744225281400,-151.0,0.0003499,7]
[357599235,1744225281430,-256.86243,0.0003499,7]
[357599236,1744225281456,-151.0,0.0003499,7]
[357599237,1744225281490,-151.0,0.0003499,7]
[357599238,1744225281519,-2924.969603,0.0003499,7]
[357599239,1744225281545,-2924.969603,0.0003499,7]
[357599240,1744225281571,-151.0,0.0003499,7]
[357599241,1744225281598,-53262.43562481,0.00035,40]
[357599242,1744225281625,-160.44759374,0.00035,120]
[357599243,1744225281652,-337.203198,0.00035,7]
[357599244,1744225281678,-100192.83981012,0.00035,120]
[357599245,1744225281704,-151.0,0.00035,7]
[357599246,1744225281730,-151.0,0.00035,7]
[357599247,1744225281756,-151.0,0.00035,7]
[357599248,1744225281784,-151.63157,0.00035,7]
[357599249,1744225281808,-151.0,0.00035,7]
[357599250,1744225281834,-205.686278,0.00035,7]
[357599251,1744225281864,-205.686278,0.00035,7]
[357599252,1744225281890,-151.0,0.00035,7]
[357599253,1744225281916,-520.521173,0.00035,22]
[357599254,1744225281942,-151.0,0.00035,7]
[357599255,1744225281969,-151.0,0.00035,7]
[357599256,1744225281996,-151.0,0.00035,7]
[357599257,1744225282026,-151.0,0.00035,7]
[357599258,1744225282051,-159.0,0.00035,31]
[357599259,1744225282082,-151.0,0.00035,7]
[357599260,1744225282108,-151.0,0.00035,7]
[357599261,1744225282135,-151.0,0.00035,7]
[357599262,1744225282162,-1389.002025,0.00035,7]
[357599263,1744225282191,-156.573961,0.00035,7]
[357599264,1744225282222,-151.0,0.00035,7]
[357599265,1744225282250,-151.0,0.00035,7]
[357599266,1744225282283,-151.0,0.00035,7]
[357599267,1744225282313,-311.410802,0.00035,17]
[357599268,1744225282340,-1800.0,0.00035,36]
[357599269,1744225282367,-151.0,0.000351,7]
[357599270,1744225282395,-215.162594,0.000351,7]
[357599271,1744225282421,-151.414312,0.000351,7]
[357599272,1744225282448,-151.414312,0.000351,7]
[357599273,1744225282474,-151.0,0.000351,7]
[357599274,1744225282501,-1246.993629,0.000351,7]
[357599275,1744225282532,-1246.993629,0.000351,7]
[357599276,1744225282559,-483.211396,0.000351,7]
[357599277,1744225282588,-483.211396,0.000351,7]
[357599278,1744225282807,-151.0,0.000351,7]
[357599279,1744225282836,-151.0,0.000351,7]
[357599280,1744225282863,-151.0,0.000351,7]
[357599281,1744225282891,-151.0,0.000351,7]
[357599282,1744225282917,-151.0,0.000351,7]
[357599283,1744225282945,-151.0,0.000351,7]
[357599284,1744225282975,-2924.969603,0.000351,7]
[357599285,1744225283009,-2924.969603,0.000351,7]
[357599286,1744225283039,-151.0,0.000351,7]
[357599287,1744225283067,-387499.45401902,0.0003511,30]
[357599288,1744225283096,-151.0,0.0003511,7]
[357599289,1744225283123,-151.0,0.0003511,7]
[357599290,1744225283150,-151.0,0.0003511,7]
[357599291,1744225283178,-205.686278,0.0003511,7]
[357599292,1744225283206,-205.686278,0.0003511,7]
[357599293,1744225283231,-151.0,0.0003511,7]
[357599294,1744225283257,-151.0,0.0003511,7]
[357599295,1744225283285,-151.0,0.0003511,7]
[357599296,1744225283311,-151.0,0.0003511,7]
[357599297,1744225283336,-151.414312,0.0003511,7]
[357599298,1744225283361,-151.414312,0.0003511,7]
[357599299,1744225283386,-151.0,0.0003511,7]
[357599300,1744225283412,-1246.993629,0.0003511,7]
[357599301,1744225283438,-1246.993629,0.0003511,7]
[357599302,1744225283464,-151.0,0.0003511,7]
[357599303,1744225283491,-151.0,0.0003511,7]
[357599304,1744225283523,-483.211396,0.0003511,7]
[357599305,1744225283551,-483.211396,0.0003511,7]
[357599306,1744225283580,-151.0,0.0003511,7]
[357599307,1744225283606,-151.0,0.0003511,7]
[357599308,1744225283632,-151.0,0.0003511,7]
[357599309,1744225283657,-151.0,0.0003511,7]
[357599310,1744225283682,-151.0,0.0003511,7]
[357599311,1744225283708,-151.0,0.0003511,7]
[357599312,1744225283734,-1389.002025,0.0003511,7]
[357599313,1744225283760,-151.0,0.0003511,7]
[357599314,1744225283788,-151.0,0.0003511,7]
[357599315,1744225283813,-151.0,0.0003511,7]
[357599316,1744225283839,-229.659348,0.0003511,7]
[357599317,1744225283864,-151.0,0.0003511,7]
[357599318,1744225283889,-151.0,0.0003511,7]
[357599319,1744225283915,-151.0,0.0003511,7]
[357599320,1744225283940,-151.0,0.0003511,7]
[357599321,1744225283966,-2924.969603,0.0003511,7]
[357599322,1744225283993,-2924.969603,0.0003511,7]
[357599323,1744225284021,-151.0,0.0003511,7]
[357599324,1744225284048,-209.0,0.0003534,30]
[357599325,1744225284075,-470.53372146,0.000356,7]
[357599326,1744225284100,-58250.95278226,0.000356,7]
[357599327,1744225284125,-2000.0,0.00035616,120]
[357599328,1744225284155,-2000.0,0.00035616,120]
[357599329,1744225284180,-2000.0,0.00035616,120]
[357599330,1744225284205,-2000.0,0.00035616,120]
[357599331,1744225284229,-2000.0,0.00035616,120]
[357599332,1744225284254,-963.01709238,0.00035616,120]
[357599333,1744225284281,-1409.35,0.00035644,30]
[357599334,1744225284307,-337.203208,0.000359,7]
[357599335,1744225284334,-1900.0,0.000359,13]
[357599336,1744225284360,-410692.72143717,0.0003593,7]
[357599337,1744225284388,-151.0,0.0003593,7]
[357599338,1744225284414,-220.987058,0.0003593,7]
[357599339,1744225284440,-151.0,0.0003593,7]
[357599340,1744225284467,-205.686278,0.0003593,7]
[357599341,1744225284497,-205.686278,0.0003593,7]
[357599342,1744225284527,-151.0,0.0003593,7]
[357599343,1744225284552,-151.0,0.0003593,7]
[357599344,1744225284577,-151.0,0.0003593,7]
[357599345,1744225284603,-151.414312,0.0003593,7]
[357599346,1744225284630,-151.414312,0.0003593,7]
[357599347,1744225284656,-151.0,0.0003593,7]
[357599348,1744225284682,-1246.993629,0.0003593,7]
[357599349,1744225284710,-1246.993629,0.0003593,7]
[357599350,1744225284735,-151.0,0.0003593,7]
[357599351,1744225284762,-151.0,0.0003593,7]
[357599352,1744225284792,-483.211396,0.0003593,7]
[357599353,1744225284819,-483.211396,0.0003593,7]
[357599354,1744225284844,-151.0,0.0003593,7]
[357599355,1744225285108,-151.0,0.0003593,7]
[357599356,1744225285137,-151.0,0.0003593,7]
[357599357,1744225285164,-151.0,0.0003593,7]
[357599358,1744225285189,-151.0,0.0003593,7]
[357599359,1744225285215,-151.0,0.0003593,7]
[357599360,1744225285243,-1389.002025,0.0003593,7]
[357599361,1744225285273,-151.0,0.0003593,7]
[357599362,1744225285301,-151.0,0.0003593,7]
[357599363,1744225285327,-151.0,0.0003593,7]
[357599364,1744225285353,-151.0,0.0003593,7]
[357599365,1744225285387,-151.0,0.0003593,7]
[357599366,1744225285416,-151.0,0.0003593,7]
[357599367,1744225285444,-151.0,0.0003593,7]
[357599368,1744225285473,-407.639998,0.0003593,28]
[357599369,1744225285501,-2924.969603,0.0003593,7]
[357599370,1744225285530,-2924.969603,0.0003593,7]
[357599371,1744225285558,-151.0,0.0003593,7]
[357599372,1744225285585,-425.0,0.00035973,120]
[357599373,1744225285612,-500.0,0.00035999,120]
[357599374,1744225285639,-2000.0,0.00035999,120]
[357599375,1744225285669,-500.0,0.00035999,120]
[357599376,1744225285699,-1800.0,0.00036,37]
[357599377,1744225285727,-209.0,0.0003694,30]
[357599378,1744225285755,-355.29444069,0.00036982,10]
[357599379,1744225285784,-1800.0,0.00037,38]
[357599380,1744225285812,-564.01616905,0.00037147,42]
[357599381,1744225285839,-151.0,0.00037162,7]
[357599382,1744225285867,-151.414312,0.00037162,7]
[357599383,1744225285896,-151.414312,0.00037162,7]
[357599384,1744225285926,-151.0,0.00037162,7]
[357599385,1744225285959,-1246.993629,0.00037162,7]
[357599386,1744225285992,-1246.993629,0.00037162,7]
[357599387,1744225286023,-151.0,0.00037162,7]
[357599388,1744225286057,-151.0,0.00037162,7]
[357599389,1744225286088,-483.211396,0.00037162,7]
[357599390,1744225286119,-483.211396,0.00037162,7]
[357599391,1744225286149,-151.0,0.00037162,7]
[357599392,1744225286195,-151.0,0.00037162,7]
[357599393,1744225286253,-151.0,0.00037162,7]
[357599394,1744225286309,-151.0,0.00037162,7]
[357599395,1744225286363,-151.0,0.00037162,7]
[357599396,1744225286421,-151.0,0.00037162,7]
[357599397,1744225286469,-1389.002025,0.00037162,7]
[357599398,1744225286527,-269.188165,0.00037162,7]
[357599399,1744225286589,-151.0,0.00037162,7]
[357599400,1744225286652,-151.0,0.00037162,7]
[357599401,1744225286704,-151.0,0.00037162,7]
[357599402,1744225286755,-151.0,0.00037162,7]
[357599403,1744225286805,-151.0,0.00037162,7]
[357599404,1744225286852,-151.0,0.00037162,7]
[357599405,1744225286898,-2924.969603,0.00037162,7]
[357599406,1744225286943,-2924.969603,0.00037162,7]
[357599407,1744225286992,-151.0,0.00037162,7]
[357599408,1744225287039,-151.0,0.000372,7]
[357599409,1744225287085,-205.686278,0.000372,7]
[357599410,1744225287144,-205.686278,0.000372,7]
[357599411,1744225287210,-151.0,0.000372,7]
[357599412,1744225287267,-151.0,0.000372,7]
[357599413,1744225287320,-3120.36959613,0.000372,103]
[357599414,1744225287371,-3120.36959612,0.000372,103]
[357599415,1744225287420,-3120.36959612,0.000372,103]
[357599416,1744225287465,-3120.36959612,0.000372,103]
[357599417,1744225287510,-500.0,0.00037499,120]
[357599418,1744225287560,-1506.96268,0.00037499,120]
[357599419,1744225287605,-150.0,0.000376,120]
[357599420,1744225287652,-258.37992,0.000376,120]
[357599421,1744225287698,-392.435317,0.00037999,120]
[357599422,1744225287743,-4000.0,0.00038,120]
[357599423,1744225287792,-1800.0,0.00038,39]
[357599424,1744225287839,-151.0,0.00038,7]
[357599425,1744225287887,-151.0,0.00038,7]
[357599426,1744225287933,-205.686278,0.00038,7]
[357599427,1744225287982,-205.686278,0.00038,7]
[357599428,1744225288032,-151.0,0.00038,7]
[357599429,1744225288077,-151.0,0.00038,7]
[357599430,1744225288396,-151.0,0.00038,7]
[357599431,1744225288425,-151.414312,0.00038,7]
[357599432,1744225288453,-151.414312,0.00038,7]
[357599433,1744225288483,-151.0,0.00038,7]
[357599434,1744225288511,-1246.993629,0.00038,7]
[357599435,1744225288543,-1246.993629,0.00038,7]
[357599436,1744225288571,-151.0,0.00038,7]
[357599437,1744225288598,-235.682,0.00038,7]
[357599438,1744225288626,-483.211396,0.00038,7]
[357599439,1744225288654,-483.211396,0.00038,7]
[357599440,1744225288682,-151.0,0.00038,7]
[357599441,1744225288708,-286.318614,0.00038,7]
[357599442,1744225288737,-151.0,0.00038,7]
[357599443,1744225288763,-151.0,0.00038,7]
[357599444,1744225288793,-151.0,0.00038,7]
[357599445,1744225288819,-1389.002025,0.00038,7]
[357599446,1744225288845,-169.584082,0.00038,7]
[357599447,1744225288872,-151.0,0.00038,7]
[357599448,1744225288899,-151.0,0.00038,7]
[357599449,1744225288926,-151.0,0.00038,7]
[357599450,1744225288953,-151.0,0.00038,7]
[357599451,1744225288984,-151.0,0.00038,7]
[357599452,1744225289012,-2924.969603,0.00038,7]
[357599453,1744225289041,-2924.969608,0.00038,7]
[357599454,1744225289071,-151.0,0.00038,7]
[357599455,1744225289098,-150.0,0.00038322,7]
[357599456,1744225289125,-150.0,0.00038322,7]
[357599457,1744225289156,-181.494,0.00038322,7]
[357599458,1744225289184,-209.0,0.0003854,30]
[357599459,1744225289211,-377.0,0.0003863,14]
[357599460,1744225289237,-265.691174,0.00038999,120]
[357599461,1744225289265,-1800.0,0.00039,40]
[357599462,1744225289292,-2710.82755675,0.00039,120]
[357599463,1744225289318,-638035.17976733,0.00039,120]
[357599464,1744225301757,-548.160426,0.0003,7]
[357599465,1744225301786,-548.160426,0.0003,7]
[357599466,1744225301815,-833.401215,0.0003,7]
[357599467,1744225301841,-833.401215,0.0003,7]
[357599468,1744225301872,-548.160426,0.0003028,7]
[357599469,1744225301902,-548.160426,0.0003028,7]
[357599470,1744225301929,-833.401215,0.0003028,7]
[357599471,1744225301955,-833.401215,0.0003028,7]
[357599472,1744225301987,-151.0,0.00030391,7]
[357599473,1744225302013,-548.160426,0.00030392,7]
[357599474,1744225302042,-548.160426,0.00030392,7]
[357599475,1744225302070,-833.401215,0.00030392,7]
[357599476,1744225302099,-833.401215,0.00030392,7]
[357599477,1744225302128,-151.0,0.0003199,7]
[357599478,1744225302161,-151.0,0.00033224,7]
[357599479,1744225302188,-548.160426,0.00033233,7]
[357599480,1744225302214,-548.160426,0.00033233,7]
[357599481,1744225302240,-833.401215,0.00033678,7]
[357599482,1744225302265,-833.401215,0.00033678,7]
[357599483,1744225302295,-151.0,0.00034344,7]
[357599484,1744225302322,-162.017017,0.0003499,7]
[357599485,1744225302349,-548.160426,0.00035,7]
[357599486,1744225302374,-548.160426,0.00035,7]
[357599487,1744225302399,-833.401215,0.00035,7]
[357599488,1744225302424,-833.401215,0.00035,7]
[357599489,1744225302450,-548.160426,0.0003511,7]
[357599490,1744225302475,-548.160426,0.0003511,7]
[357599491,1744225302500,-833.401215,0.0003511,7]
[357599492,1744225302525,-833.401215,0.0003511,7]
[357599493,1744225302553,-470.53372146,0.000356,7]
[357599494,1744225302580,-548.160426,0.0003593,7]
[357599495,1744225302607,-548.160426,0.0003593,7]
[357599496,1744225302633,-833.401215,0.0003593,7]
[357599497,1744225302659,-833.401215,0.0003593,7]
[357599498,1744225302687,-548.160426,0.0003694,7]
[357599499,1744225302714,-548.160426,0.0003694,7]
[357599500,1744225302741,-833.401215,0.00037162,7]
[357599501,1744225302770,-833.401215,0.00037162,7]
[357599502,1744225302797,-548.160426,0.00038,7]
[357599503,1744225302824,-548.160426,0.00038,7]
[357599504,1744225302851,-833.401215,0.00038,7]
[357599505,1744225302878,-833.401215,0.00038,7]
[357599506,1744225302905,-150.0,0.00038003,7]
[357599507,1744225302933,-150.0,0.00038483,7]
[357599508,1744225302962,-56964.82023267,0.00039,120]
[357599509,1744225302991,-151.0,0.00039,14]
[357599510,1744225303024,-205.686278,0.00039,14]
[357599511,1744225303051,-205.686278,0.00039,14]
[357599512,1744225303079,-151.0,0.00039,14]
[357599513,1744225303105,-151.0,0.00039,14]
[357599514,1744225303132,-151.0,0.00039,14]
[357599515,1744225303159,-151.414312,0.00039,14]
[357599516,1744225303186,-151.414322,0.00039,14]
[357599517,1744225303216,-151.0,0.00039,14]
[357599518,1744225303245,-1246.993629,0.00039,14]
[357599519,1744225303272,-1246.99363,0.00039,14]
[357599520,1744225303302,-151.0,0.00039,14]
[357599521,1744225303330,-483.211396,0.00039,14]
[357599522,1744225303359,-483.21140294,0.00039,14]
[357599523,1744225303622,-151.0,0.00039,14]
[357599524,1744225303649,-262.723401,0.00039,14]
[357599525,1744225303675,-151.0,0.00039,14]
[357599526,1744225303702,-151.0,0.00039,14]
[357599527,1744225303733,-151.0,0.00039,14]
[357599528,1744225303761,-548.160426,0.00039,14]
[357599529,1744225303791,-548.160434,0.00039,14]
[357599530,1744225303825,-833.401215,0.00039,14]
[357599531,1744225303856,-833.401218,0.00039,14]
[357599532,1744225303886,-500.0,0.00039726,15]
[357599533,1744225303915,-555.33373828,0.00039726,15]
[357599534,1744225303942,-303.16560209,0.00039747,14]
[357599535,1744225303968,-200.0,0.00039876,10]
[357599536,1744225303997,-318.0,0.000399,120]
[357599537,1744225304024,-1900.0,0.000399,14]
[357599538,1744225304052,-151.20146,0.000399,45]
[357599539,1744225304082,-20376.42422589,0.000399,15]
[357599540,1744225304109,-355.29444069,0.00039941,13]
[357599541,1744225304136,-725.0,0.0004,120]
[357599542,1744225304163,-1524244.14561702,0.0004,30]
[357599543,1744225304190,-1800.0,0.0004,41]
[357599544,1744225304217,-506.57862803,0.0004,120]
[357599545,1744225304244,-220.0,0.0004,120]
[357599546,1744225304270,-53066.84390667,0.0004,30]
[357599547,1744225304300,-503.54249821,0.0004,120]
[357599548,1744225304327,-1000.0,0.0004,7]
[357599549,1744225304354,-500.0,0.0004,10]
[357599550,1744225304381,-1913.95687179,0.0004,15]
[357599551,1744225304411,-6714.76839135,0.0004,30]
[357599552,1744225304439,-5391.18078389,0.0004,30]
[357599553,1744225304468,-151.0,0.0004,14]
[357599554,1744225304496,-205.686278,0.0004,14]
[357599555,1744225304526,-205.686278,0.0004,14]
[357599556,1744225304558,-172.180844,0.0004,14]
[357599557,1744225304585,-160.929033,0.0004,14]
[357599558,1744225304612,-151.0,0.0004,14]
[357599559,1744225304643,-151.0,0.0004,14]
[357599560,1744225304669,-151.0,0.0004,14]
[357599561,1744225304695,-151.0,0.0004,14]
[357599562,1744225304721,-167.403207,0.0004,30]
[357599563,1744225304748,-1000.0,0.0004,30]
[357599564,1744225304774,-209.0,0.0004014,30]
[357599565,1744225304802,-208.43271316,0.000402,120]
[357599566,1744225304829,-377.0,0.00040274,14]
[357599567,1744225304856,-154.0,0.00040274,14]
[357599568,1744225304883,-3978.62690984,0.000405,120]
[357599569,1744225304911,-1409.35,0.00040534,30]
[357599570,1744225304938,-979.82608101,0.00040658,120]
[357599571,1744225304966,-153.64651137,0.000408,30]
[357599572,1744225304993,-200.0,0.00040926,14]
[357599573,1744225305020,-205.686278,0.0004099,14]
[357599574,1744225305051,-205.686278,0.0004099,14]
[357599575,1744225305080,-1000.0,0.00041,42]
[357599576,1744225305106,-1110.40987476,0.00041,120]
[357599577,1744225305134,-4991.0,0.00041,117]
[357599578,1744225305163,-151.0,0.00041,14]
[357599579,1744225305190,-150.5,0.0004107,120]
[357599580,1744225305216,-568.0,0.0004107,120]
[357599581,1744225305244,-150.5,0.0004108,120]
[357599582,1744225305271,-568.0,0.0004108,120]
[357599583,1744225305298,-150.5,0.0004109,120]
[357599584,1744225305324,-568.0,0.0004109,120]
[357599585,1744225305350,-979.54493006,0.00041095,120]
[357599586,1744225305377,-150.0,0.00041095,30]
[357599587,1744225305403,-159.41859019,0.00041095,120]
[357599588,1744225305429,-291.77,0.00041095,120]
[357599589,1744225305455,-150.0,0.00041096,10]
[357599590,1744225305482,-859.97,0.00041096,30]
[357599591,1744225305509,-500.0,0.00041096,30]
[357599592,1744225305535,-500.0,0.00041096,30]
[357599593,1744225305564,-500.0,0.00041096,30]
[357599594,1744225305590,-500.0,0.00041096,30]
[357599595,1744225305617,-500.0,0.00041096,30]
[357599596,1744225305643,-500.0,0.00041096,30]
[357599597,1744225305669,-500.0,0.00041096,30]
[357599598,1744225305696,-500.0,0.00041096,30]
[357599599,1744225305725,-252.0,0.00041096,30]
[357599600,1744225305752,-552.0,0.00041096,30]
[357599601,1744225305778,-2000.0,0.00041096,13]
[357599602,1744225305808,-2000.0,0.00041096,13]
[357599603,1744225305835,-2000.0,0.00041096,13]